[Event "*** Titled Tuesday Blitz"]
[Site "Chess.com"]
[Date "2019.02.05"]
[Round "10"]
[White "wenx95"]
[Black "ruvat"]
[Result "1-0"]
[WhiteElo "2514"]
[BlackElo "2312"]
[TimeControl "180+2"]
[EndTime "15:28:33 PST"]
[Termination "wenx95 won on time"]

1. c4 {[%clk 0:02:39.2]} 1... d6 {[%clk 0:02:58.8]} 2. g3 {[%clk 0:01:57.7]}
2... e5 {[%clk 0:02:57.6]} 3. Bg2 {[%clk 0:01:56.3]} 3... f5 {[%clk 0:02:56.1]}
4. d4 {[%clk 0:01:56.8]} 4... Be7 {[%clk 0:02:54.9]} 5. dxe5 {[%clk 0:01:54.8]}
5... dxe5 {[%clk 0:02:55.8]} 6. Qxd8+ {[%clk 0:01:55.2]} 6... Bxd8 {[%clk
0:02:57.7]} 7. Nc3 {[%clk 0:01:53.3]} 7... Na6 {[%clk 0:02:52.1]} 8. Nf3 {[%clk
0:01:51.7]} 8... e4 {[%clk 0:02:36.2]} 9. Nd4 {[%clk 0:01:49.7]} 9... Nf6 {[%clk
0:02:19.3]} 10. h3 {[%clk 0:01:46.5]} 10... c6 {[%clk 0:02:15.4]} 11. Be3 {[%clk
0:01:45.8]} 11... O-O {[%clk 0:01:55.3]} 12. O-O {[%clk 0:01:44]} 12... Be7
{[%clk 0:01:55.2]} 13. Rfd1 {[%clk 0:01:43.4]} 13... Nc5 {[%clk 0:01:49.5]} 14.
b4 {[%clk 0:01:41.6]} 14... Ne6 {[%clk 0:01:49.7]} 15. a3 {[%clk 0:01:31.3]}
15... Nxd4 {[%clk 0:01:45.5]} 16. Bxd4 {[%clk 0:01:26.9]} 16... Be6 {[%clk
0:01:44]} 17. c5 {[%clk 0:01:23.5]} 17... Rad8 {[%clk 0:01:33.8]} 18. e3 {[%clk
0:01:24.3]} 18... Nd5 {[%clk 0:01:24.2]} 19. Nxd5 {[%clk 0:01:21.1]} 19... Bxd5
{[%clk 0:01:18.2]} 20. Rab1 {[%clk 0:01:16.1]} 20... Kf7 {[%clk 0:01:09.2]} 21.
h4 {[%clk 0:00:58.7]} 21... g6 {[%clk 0:01:08.4]} 22. Bf1 {[%clk 0:00:59.1]}
22... h6 {[%clk 0:01:08.1]} 23. Be2 {[%clk 0:00:54.9]} 23... Ke6 {[%clk
0:01:07.3]} 24. a4 {[%clk 0:00:52.3]} 24... g5 {[%clk 0:01:06.9]} 25. h5 {[%clk
0:00:40.9]} 25... Rg8 {[%clk 0:01:03.4]} 26. b5 {[%clk 0:00:40]} 26... f4 {[%clk
0:01:03]} 27. Bg4+ {[%clk 0:00:40.2]} 27... Kf7 {[%clk 0:01:01.6]} 28. a5 {[%clk
0:00:34.2]} 28... cxb5 {[%clk 0:00:54]} 29. Rxb5 {[%clk 0:00:33.6]} 29... Bc6
{[%clk 0:00:53.5]} 30. Rb2 {[%clk 0:00:31.3]} 30... a6 {[%clk 0:00:46]} 31. Rdb1
{[%clk 0:00:30.1]} 31... Rb8 {[%clk 0:00:26.9]} 32. Kf1 {[%clk 0:00:20.7]} 32...
Bf6 {[%clk 0:00:19.3]} 33. Ke2 {[%clk 0:00:18.1]} 33... Rgd8 {[%clk 0:00:15.7]}
34. Rd2 {[%clk 0:00:16.9]} 34... Bxd4 {[%clk 0:00:14.3]} 35. exd4 {[%clk
0:00:15.6]} 35... Bd5 {[%clk 0:00:12.9]} 36. Rb6 {[%clk 0:00:16.2]} 36... Bc6
{[%clk 0:00:10.8]} 37. d5 {[%clk 0:00:15.1]} 37... Rxd5 {[%clk 0:00:09.2]} 38.
Rxd5 {[%clk 0:00:13.1]} 38... Bxd5 {[%clk 0:00:11.1]} 39. Rxh6 {[%clk
0:00:14.4]} 39... Bc4+ {[%clk 0:00:09]} 40. Ke1 {[%clk 0:00:14.8]} 40... fxg3
{[%clk 0:00:05.6]} 41. fxg3 {[%clk 0:00:15]} 41... e3 {[%clk 0:00:04.1]} 42. Rd6
{[%clk 0:00:08.9]} 42... Re8 {[%clk 0:00:02.2]} 43. h6 {[%clk 0:00:08.3]} 1-0

[Event "*** Titled Tuesday Blitz"]
[Site "Chess.com"]
[Date "2019.02.05"]
[Round "10"]
[White "Godzillator"]
[Black "sandager"]
[Result "1-0"]
[WhiteElo "2386"]
[BlackElo "2126"]
[TimeControl "180+2"]
[EndTime "15:28:39 PST"]
[Termination "Godzillator won by checkmate"]

1. d4 {[%clk 0:03:01.9]} 1... Nf6 {[%clk 0:02:59.8]} 2. c4 {[%clk 0:03:03]} 2...
g6 {[%clk 0:03:01.1]} 3. Nc3 {[%clk 0:03:04.3]} 3... d5 {[%clk 0:03:02.1]} 4.
Nf3 {[%clk 0:03:05.5]} 4... Bg7 {[%clk 0:03:03]} 5. h4 {[%clk 0:03:06.8]} 5...
h5 {[%clk 0:03:02.6]} 6. cxd5 {[%clk 0:03:02.5]} 6... Nxd5 {[%clk 0:03:02.5]} 7.
Qb3 {[%clk 0:03:03.5]} 7... Nb6 {[%clk 0:03:01.8]} 8. e4 {[%clk 0:03:03.8]} 8...
O-O {[%clk 0:03:01.4]} 9. Be3 {[%clk 0:03:04]} 9... c6 {[%clk 0:03:02]} 10. Rd1
{[%clk 0:03:03.8]} 10... Be6 {[%clk 0:03:01.8]} 11. Qc2 {[%clk 0:03:03.1]} 11...
Na6 {[%clk 0:02:59.4]} 12. a3 {[%clk 0:03:03.5]} 12... Qc8 {[%clk 0:02:57.4]}
13. Ng5 {[%clk 0:03:02.6]} 13... Bg4 {[%clk 0:02:57.1]} 14. f3 {[%clk
0:03:03.8]} 14... Bd7 {[%clk 0:02:52.8]} 15. Bxa6 {[%clk 0:03:02.1]} 15... bxa6
{[%clk 0:02:52.4]} 16. O-O {[%clk 0:02:57.8]} 16... f6 {[%clk 0:02:39.3]} 17.
Qb3+ {[%clk 0:02:55.6]} 17... e6 {[%clk 0:02:00.4]} 18. Nh3 {[%clk 0:02:51.6]}
18... Kh7 {[%clk 0:01:58.1]} 19. e5 {[%clk 0:02:47.1]} 19... Nd5 {[%clk
0:01:48.2]} 20. Nxd5 {[%clk 0:02:45.1]} 20... cxd5 {[%clk 0:01:48]} 21. exf6
{[%clk 0:02:44.3]} 21... Bxf6 {[%clk 0:01:47.5]} 22. Ng5+ {[%clk 0:02:45.4]}
22... Kg7 {[%clk 0:01:44.2]} 23. Rc1 {[%clk 0:02:44.7]} 23... Qd8 {[%clk
0:01:43.5]} 24. Qd3 {[%clk 0:02:39]} 24... Rb8 {[%clk 0:01:37.7]} 25. b4 {[%clk
0:02:38.6]} 25... Bb5 {[%clk 0:01:34.7]} 26. Qxb5 {[%clk 0:02:32]} 26... Bxg5
{[%clk 0:01:29.1]} 27. Bxg5 {[%clk 0:02:24.7]} 27... axb5 {[%clk 0:01:21.9]} 28.
Bxd8 {[%clk 0:02:25.2]} 28... Rbxd8 {[%clk 0:01:20.9]} 29. Rc7+ {[%clk
0:02:25.7]} 29... Rf7 {[%clk 0:01:20.6]} 30. Rfc1 {[%clk 0:02:26.4]} 30... Rdd7
{[%clk 0:01:21.1]} 31. Rxd7 {[%clk 0:02:26.3]} 31... Rxd7 {[%clk 0:01:20.5]} 32.
Rc5 {[%clk 0:02:27.1]} 32... Rb7 {[%clk 0:01:20.2]} 33. Kf2 {[%clk 0:02:23.5]}
33... Kf6 {[%clk 0:01:20.6]} 34. g4 {[%clk 0:02:24.2]} 34... Ke7 {[%clk
0:01:14.4]} 35. Ke3 {[%clk 0:02:22.5]} 35... Kd6 {[%clk 0:01:12.7]} 36. Kf4
{[%clk 0:02:21]} 36... Rf7+ {[%clk 0:01:05.4]} 37. Kg5 {[%clk 0:02:17]} 37...
Rxf3 {[%clk 0:01:04.2]} 38. gxh5 {[%clk 0:02:18.1]} 38... gxh5 {[%clk
0:01:03.8]} 39. Kxh5 {[%clk 0:02:19.2]} 39... Rf4 {[%clk 0:01:01.6]} 40. Kg5
{[%clk 0:02:17.7]} 40... Rxd4 {[%clk 0:01:01.1]} 41. h5 {[%clk 0:02:16.6]} 41...
a6 {[%clk 0:01:00.2]} 42. h6 {[%clk 0:02:17.5]} 42... Rd1 {[%clk 0:00:58.6]} 43.
Rc8 {[%clk 0:02:10.9]} 43... Rg1+ {[%clk 0:00:56]} 44. Kf6 {[%clk 0:02:11.2]}
44... Rh1 {[%clk 0:00:53.9]} 45. Kg7 {[%clk 0:02:11.2]} 45... e5 {[%clk
0:00:52]} 46. Ra8 {[%clk 0:02:03.5]} 46... e4 {[%clk 0:00:49.1]} 47. Rxa6+
{[%clk 0:02:04.4]} 47... Ke5 {[%clk 0:00:49.7]} 48. a4 {[%clk 0:01:56.8]} 48...
bxa4 {[%clk 0:00:44.8]} 49. Rxa4 {[%clk 0:01:57.6]} 49... e3 {[%clk 0:00:45.3]}
50. Ra2 {[%clk 0:01:56.2]} 50... d4 {[%clk 0:00:45]} 51. b5 {[%clk 0:01:49.7]}
51... d3 {[%clk 0:00:41.8]} 52. b6 {[%clk 0:01:50.8]} 52... Rb1 {[%clk
0:00:33.2]} 53. h7 {[%clk 0:01:51.3]} 53... Rxb6 {[%clk 0:00:27.5]} 54. h8=Q
{[%clk 0:01:51.1]} 54... d2 {[%clk 0:00:21]} 55. Kf7+ {[%clk 0:01:51.3]} 55...
Ke4 {[%clk 0:00:20.5]} 56. Qh4+ {[%clk 0:01:48.7]} 56... Kd3 {[%clk 0:00:20.1]}
57. Ra3+ {[%clk 0:01:46.4]} 57... Kc2 {[%clk 0:00:20.2]} 58. Qc4+ {[%clk
0:01:44.6]} 58... Kb1 {[%clk 0:00:20.1]} 59. Qf1+ {[%clk 0:01:24.9]} 59... Kb2
{[%clk 0:00:18.6]} 60. Qa1+ {[%clk 0:01:25.7]} 60... Kc2 {[%clk 0:00:18.9]} 61.
Rc3# {[%clk 0:01:26.8]} 1-0

[Event "*** Titled Tuesday Blitz"]
[Site "Chess.com"]
[Date "2019.02.05"]
[Round "10"]
[White "r31415"]
[Black "Vugar_Manafov"]
[Result "0-1"]
[WhiteElo "2289"]
[BlackElo "2367"]
[TimeControl "180+2"]
[EndTime "15:28:48 PST"]
[Termination "Vugar_Manafov won by resignation"]

1. e4 {[%clk 0:02:48]} 1... c5 {[%clk 0:02:59.4]} 2. Nf3 {[%clk 0:02:48.1]} 2...
d6 {[%clk 0:02:59.5]} 3. d4 {[%clk 0:02:50]} 3... cxd4 {[%clk 0:02:59.2]} 4.
Nxd4 {[%clk 0:02:51.9]} 4... Nf6 {[%clk 0:03:00.4]} 5. Nc3 {[%clk 0:02:53.4]}
5... Nc6 {[%clk 0:03:01.9]} 6. h3 {[%clk 0:02:55]} 6... e5 {[%clk 0:03:02.5]} 7.
Nde2 {[%clk 0:02:55.9]} 7... Be6 {[%clk 0:03:03.3]} 8. Be3 {[%clk 0:02:35]} 8...
Be7 {[%clk 0:03:02.1]} 9. g4 {[%clk 0:02:12]} 9... a6 {[%clk 0:02:49.7]} 10. Bg2
{[%clk 0:02:11.8]} 10... b5 {[%clk 0:02:48.9]} 11. Ng3 {[%clk 0:02:07.7]} 11...
O-O {[%clk 0:02:43.9]} 12. O-O {[%clk 0:02:07.6]} 12... Rc8 {[%clk 0:02:36.4]}
13. Qd2 {[%clk 0:02:00.2]} 13... Na5 {[%clk 0:02:27.9]} 14. b3 {[%clk
0:01:59.7]} 14... Qc7 {[%clk 0:02:26.5]} 15. Nd5 {[%clk 0:01:55.3]} 15... Bxd5
{[%clk 0:02:15]} 16. exd5 {[%clk 0:01:57.2]} 16... Nb7 {[%clk 0:02:10.8]} 17. g5
{[%clk 0:01:39.6]} 17... Nd7 {[%clk 0:02:04.7]} 18. Nf5 {[%clk 0:01:33.2]} 18...
Rfe8 {[%clk 0:02:03.8]} 19. Nxe7+ {[%clk 0:01:20.8]} 19... Rxe7 {[%clk
0:02:05.7]} 20. Rac1 {[%clk 0:01:19.5]} 20... Nbc5 {[%clk 0:02:03.8]} 21. c4
{[%clk 0:01:17.7]} 21... b4 {[%clk 0:02:02]} 22. h4 {[%clk 0:01:09.6]} 22... a5
{[%clk 0:02:01.5]} 23. Bh3 {[%clk 0:01:08.1]} 23... Rce8 {[%clk 0:02:00.8]} 24.
f3 {[%clk 0:01:05.5]} 24... Nf8 {[%clk 0:01:51.6]} 25. Bf5 {[%clk 0:00:58.6]}
25... Ng6 {[%clk 0:01:50.4]} 26. h5 {[%clk 0:00:58.5]} 26... Nf4 {[%clk
0:01:50.9]} 27. Bxf4 {[%clk 0:00:59]} 27... exf4 {[%clk 0:01:52.8]} 28. Qxf4
{[%clk 0:01:00]} 28... Re2 {[%clk 0:01:52.8]} 29. Rf2 {[%clk 0:00:57.9]} 29...
Rxf2 {[%clk 0:01:51.4]} 30. Kxf2 {[%clk 0:00:58.2]} 30... Qe7 {[%clk 0:01:52.3]}
31. Qd2 {[%clk 0:00:50.5]} 31... Qe5 {[%clk 0:01:48.6]} 32. Re1 {[%clk
0:00:47.5]} 32... Qh2+ {[%clk 0:01:30.5]} 33. Kf1 {[%clk 0:00:48.7]} 33... Qh1+
{[%clk 0:01:30.7]} 34. Kf2 {[%clk 0:00:48.7]} 34... Rxe1 {[%clk 0:01:25.4]} 35.
Qxe1 {[%clk 0:00:49.4]} 35... Qh2+ {[%clk 0:01:26.4]} 36. Kf1 {[%clk 0:00:42.8]}
36... Kf8 {[%clk 0:01:26.9]} 37. Qf2 {[%clk 0:00:33.2]} 37... Qxh5 {[%clk
0:01:23.7]} 38. Qg3 {[%clk 0:00:32.3]} 38... Ke7 {[%clk 0:01:23.9]} 39. Kg2
{[%clk 0:00:30.4]} 39... h6 {[%clk 0:01:19.4]} 40. Qe1+ {[%clk 0:00:25.9]} 40...
Kd8 {[%clk 0:01:15.9]} 41. gxh6 {[%clk 0:00:04.1]} 41... Qxh6 {[%clk 0:01:05.2]}
42. Qg3 {[%clk 0:00:03]} 42... Qf6 {[%clk 0:01:05.6]} 43. Bc2 {[%clk 0:00:03.2]}
43... g6 {[%clk 0:01:06.1]} 44. Qf2 {[%clk 0:00:03.3]} 44... Kc7 {[%clk
0:01:06.9]} 45. Qg3 {[%clk 0:00:04.4]} 45... Qc3 {[%clk 0:01:05.6]} 46. Be4
{[%clk 0:00:05]} 46... Qd2+ {[%clk 0:00:45.4]} 47. Kh3 {[%clk 0:00:04.1]} 47...
f5 {[%clk 0:00:41.7]} 48. Bb1 {[%clk 0:00:02.9]} 48... Qc1 {[%clk 0:00:31.5]}
49. Qxg6 {[%clk 0:00:03.2]} 49... Qxb1 {[%clk 0:00:32.6]} 50. Qh7+ {[%clk
0:00:02.8]} 50... Nd7 {[%clk 0:00:31.9]} 51. Qh8 {[%clk 0:00:04.1]} 51... Qh1+
{[%clk 0:00:31.2]} 0-1

[Event "*** Titled Tuesday Blitz"]
[Site "Chess.com"]
[Date "2019.02.05"]
[Round "10"]
[White "VeraNebolsina"]
[Black "Kostya_Nikologorskiy"]
[Result "0-1"]
[WhiteElo "2376"]
[BlackElo "2441"]
[TimeControl "180+2"]
[EndTime "15:28:55 PST"]
[Termination "Kostya_Nikologorskiy won by resignation"]

1. e4 {[%clk 0:03:01.9]} 1... c6 {[%clk 0:02:55]} 2. d4 {[%clk 0:03:01.3]} 2...
d5 {[%clk 0:02:56]} 3. exd5 {[%clk 0:03:02.3]} 3... cxd5 {[%clk 0:02:57.9]} 4.
Bd3 {[%clk 0:03:02.7]} 4... Nf6 {[%clk 0:02:56]} 5. c3 {[%clk 0:03:02.2]} 5...
g6 {[%clk 0:02:52.4]} 6. Bf4 {[%clk 0:02:58.6]} 6... Nc6 {[%clk 0:02:52.3]} 7.
Nd2 {[%clk 0:02:54.1]} 7... Bg7 {[%clk 0:02:52.1]} 8. h3 {[%clk 0:02:49.4]} 8...
O-O {[%clk 0:02:52]} 9. Ngf3 {[%clk 0:02:48.9]} 9... Bf5 {[%clk 0:02:33.4]} 10.
Bxf5 {[%clk 0:02:45.9]} 10... gxf5 {[%clk 0:02:34.9]} 11. Ne5 {[%clk 0:02:46.3]}
11... Ne4 {[%clk 0:02:27.5]} 12. g4 {[%clk 0:01:58.4]} 12... Nxe5 {[%clk
0:02:22.4]} 13. Bxe5 {[%clk 0:01:56.4]} 13... f6 {[%clk 0:02:23.1]} 14. Bh2
{[%clk 0:01:54.1]} 14... Bh6 {[%clk 0:02:14.1]} 15. Nxe4 {[%clk 0:01:51.1]}
15... fxe4 {[%clk 0:02:14.4]} 16. f4 {[%clk 0:01:41.6]} 16... a5 {[%clk
0:01:50.9]} 17. a4 {[%clk 0:01:33.6]} 17... Kh8 {[%clk 0:01:48.2]} 18. O-O
{[%clk 0:01:31.7]} 18... Qb6 {[%clk 0:01:45.6]} 19. Qe2 {[%clk 0:01:28.6]} 19...
f5 {[%clk 0:01:45.2]} 20. g5 {[%clk 0:01:24.9]} 20... Bg7 {[%clk 0:01:45.5]} 21.
Kh1 {[%clk 0:01:25.3]} 21... Qa6 {[%clk 0:01:43.4]} 22. Qc2 {[%clk 0:00:50]}
22... b5 {[%clk 0:01:39.7]} 23. Qb3 {[%clk 0:00:50.4]} 23... Rab8 {[%clk
0:01:34]} 24. Qxd5 {[%clk 0:00:49.6]} 24... bxa4 {[%clk 0:01:34.8]} 25. Rf2
{[%clk 0:00:50.4]} 25... Qd3 {[%clk 0:01:28.9]} 26. Rg2 {[%clk 0:00:20.9]} 26...
Rb5 {[%clk 0:01:13.1]} 27. Qe6 {[%clk 0:00:20.6]} 27... Rfb8 {[%clk 0:01:06.7]}
28. Qxe7 {[%clk 0:00:19.7]} 28... a3 {[%clk 0:01:01.4]} 29. Qxa3 {[%clk
0:00:16.1]} 29... Qxh3 {[%clk 0:00:58.5]} 30. Qe7 {[%clk 0:00:11.3]} 30... Qf3
{[%clk 0:00:55.8]} 31. Kg1 {[%clk 0:00:10.6]} 31... R5b7 {[%clk 0:00:50.1]} 32.
Qe6 {[%clk 0:00:11.1]} 32... a4 {[%clk 0:00:40.5]} 33. Qxf5 {[%clk 0:00:10.6]}
33... a3 {[%clk 0:00:40.3]} 34. Rxa3 {[%clk 0:00:09.4]} 34... Qd1+ {[%clk
0:00:39.8]} 35. Kf2 {[%clk 0:00:08.7]} 35... Rxb2+ {[%clk 0:00:41.5]} 36. Kg3
{[%clk 0:00:09.7]} 36... Qf3+ {[%clk 0:00:42.2]} 37. Kh4 {[%clk 0:00:10.2]}
37... Rxg2 {[%clk 0:00:43.1]} 38. Qh3 {[%clk 0:00:08]} 38... h6 {[%clk
0:00:32.1]} 39. Qxf3 {[%clk 0:00:06.4]} 39... exf3 {[%clk 0:00:32.6]} 40. Bg3
{[%clk 0:00:05.7]} 40... hxg5+ {[%clk 0:00:31.4]} 41. fxg5 {[%clk 0:00:05.8]}
41... Rb1 {[%clk 0:00:30.3]} 42. g6 {[%clk 0:00:05.3]} 42... Bf6+ {[%clk
0:00:30.6]} 43. Kg4 {[%clk 0:00:04.3]} 43... f2 {[%clk 0:00:31.8]} 44. Ra8+
{[%clk 0:00:04.5]} 44... Kg7 {[%clk 0:00:32.6]} 45. Kh5 {[%clk 0:00:04.6]} 45...
Rh1+ {[%clk 0:00:32.6]} 46. Kg4 {[%clk 0:00:05.4]} 46... f1=Q {[%clk 0:00:32.7]}
0-1

[Event "*** Titled Tuesday Blitz"]
[Site "Chess.com"]
[Date "2019.02.05"]
[Round "10"]
[White "TST2014"]
[Black "goodluck06"]
[Result "0-1"]
[WhiteElo "2511"]
[BlackElo "2480"]
[TimeControl "180+2"]
[EndTime "15:29:36 PST"]
[Termination "goodluck06 won on time"]

1. d4 {[%clk 0:02:41.2]} 1... Nf6 {[%clk 0:02:59.9]} 2. c4 {[%clk 0:02:41.6]}
2... g6 {[%clk 0:03:01.4]} 3. Nc3 {[%clk 0:02:41.7]} 3... Bg7 {[%clk 0:03:02.9]}
4. e4 {[%clk 0:02:42.9]} 4... O-O {[%clk 0:03:04.5]} 5. Nf3 {[%clk 0:02:44.1]}
5... d6 {[%clk 0:03:06]} 6. Be2 {[%clk 0:02:44.8]} 6... Nbd7 {[%clk 0:03:07.6]}
7. O-O {[%clk 0:02:45.7]} 7... e5 {[%clk 0:03:09.3]} 8. Be3 {[%clk 0:02:45.6]}
8... c6 {[%clk 0:03:01.3]} 9. d5 {[%clk 0:02:43]} 9... c5 {[%clk 0:03:02]} 10.
Ne1 {[%clk 0:02:41.5]} 10... h6 {[%clk 0:03:00.5]} 11. Nd3 {[%clk 0:02:40.5]}
11... Nh7 {[%clk 0:03:01.2]} 12. a3 {[%clk 0:02:36.7]} 12... f5 {[%clk
0:03:01.5]} 13. exf5 {[%clk 0:02:33]} 13... gxf5 {[%clk 0:03:02.2]} 14. f4
{[%clk 0:02:34.3]} 14... b6 {[%clk 0:02:51.6]} 15. Kh1 {[%clk 0:02:30.5]} 15...
Nhf6 {[%clk 0:02:43.8]} 16. b4 {[%clk 0:02:14.6]} 16... e4 {[%clk 0:02:25.6]}
17. Nf2 {[%clk 0:02:14.2]} 17... h5 {[%clk 0:02:02.5]} 18. Rc1 {[%clk
0:01:55.1]} 18... Ng4 {[%clk 0:02:02.4]} 19. Nxg4 {[%clk 0:01:38.4]} 19... hxg4
{[%clk 0:02:02.2]} 20. Nxe4 {[%clk 0:01:36.3]} 20... fxe4 {[%clk 0:02:01.2]} 21.
Bxg4 {[%clk 0:01:37.3]} 21... Nf6 {[%clk 0:01:15.6]} 22. Be6+ {[%clk 0:01:37.7]}
22... Bxe6 {[%clk 0:01:14.8]} 23. dxe6 {[%clk 0:01:38.8]} 23... Qe7 {[%clk
0:01:16.3]} 24. f5 {[%clk 0:01:39.8]} 24... Rad8 {[%clk 0:01:13.9]} 25. g4
{[%clk 0:01:37.5]} 25... d5 {[%clk 0:01:09.2]} 26. g5 {[%clk 0:01:31.5]} 26...
d4 {[%clk 0:01:10.1]} 27. Bf4 {[%clk 0:01:16.1]} 27... e3 {[%clk 0:00:56.6]} 28.
Rg1 {[%clk 0:01:12.7]} 28... Ne4 {[%clk 0:00:55.5]} 29. f6 {[%clk 0:00:40.1]}
29... Qxe6 {[%clk 0:00:30.3]} 30. Qh5 {[%clk 0:00:26.8]} 30... Nf2+ {[%clk
0:00:26]} 31. Kg2 {[%clk 0:00:27.4]} 31... Qe4+ {[%clk 0:00:27.2]} 32. Kg3
{[%clk 0:00:26]} 32... d3 {[%clk 0:00:04.7]} 33. bxc5 {[%clk 0:00:15.9]} 33...
Rd4 {[%clk 0:00:05.2]} 34. Qf3 {[%clk 0:00:13.9]} 34... Qxf3+ {[%clk 0:00:04.8]}
35. Kxf3 {[%clk 0:00:15.1]} 35... d2 {[%clk 0:00:05]} 36. Bxe3 {[%clk
0:00:14.2]} 36... dxc1=Q {[%clk 0:00:05.2]} 37. Rxc1 {[%clk 0:00:15.7]} 37...
Nd3 {[%clk 0:00:04.4]} 38. Rd1 {[%clk 0:00:15.2]} 38... Rdd8 {[%clk 0:00:04.6]}
39. Ke2 {[%clk 0:00:15.5]} 39... Nxc5 {[%clk 0:00:05.1]} 40. fxg7 {[%clk
0:00:16.2]} 40... Rfe8 {[%clk 0:00:05.7]} 41. Rf1 {[%clk 0:00:15.2]} 41... Kxg7
{[%clk 0:00:06.3]} 42. Kf2 {[%clk 0:00:15.6]} 42... Rf8+ {[%clk 0:00:07.7]} 43.
Ke2 {[%clk 0:00:16.4]} 43... Rxf1 {[%clk 0:00:09.1]} 44. Kxf1 {[%clk 0:00:18]}
44... Rd3 {[%clk 0:00:10.7]} 45. Ke2 {[%clk 0:00:19]} 45... Rxa3 {[%clk
0:00:11.6]} 46. Bd4+ {[%clk 0:00:19.8]} 46... Kg6 {[%clk 0:00:12.5]} 47. h4
{[%clk 0:00:21.4]} 47... Rh3 {[%clk 0:00:13.1]} 48. Bf2 {[%clk 0:00:22]} 48...
Rh2 {[%clk 0:00:13.8]} 49. Kf3 {[%clk 0:00:22.6]} 49... a5 {[%clk 0:00:14.8]}
50. Bg3 {[%clk 0:00:23.6]} 50... Rc2 {[%clk 0:00:15.5]} 51. Kg4 {[%clk
0:00:24.7]} 51... Rxc4+ {[%clk 0:00:16.7]} 52. Bf4 {[%clk 0:00:26.2]} 52... Ne6
{[%clk 0:00:16.7]} 53. h5+ {[%clk 0:00:27.5]} 53... Kf7 {[%clk 0:00:17.2]} 54.
g6+ {[%clk 0:00:28.3]} 54... Kg8 {[%clk 0:00:18.5]} 55. Kf5 {[%clk 0:00:28]}
55... Nxf4 {[%clk 0:00:19.7]} 56. h6 {[%clk 0:00:29]} 56... Nxg6 {[%clk
0:00:20.9]} 0-1

[Event "*** Titled Tuesday Blitz"]
[Site "Chess.com"]
[Date "2019.02.05"]
[Round "10"]
[White "Shukh_Nikolay"]
[Black "Alex_Terzi"]
[Result "1-0"]
[WhiteElo "2432"]
[BlackElo "2464"]
[TimeControl "180+2"]
[EndTime "15:29:42 PST"]
[Termination "Shukh_Nikolay won on time"]

1. Nf3 {[%clk 0:03:01.9]} 1... Nf6 {[%clk 0:03:00.6]} 2. c4 {[%clk 0:03:02.8]}
2... g6 {[%clk 0:02:59.8]} 3. b3 {[%clk 0:03:04]} 3... Bg7 {[%clk 0:03:00.9]} 4.
Bb2 {[%clk 0:03:05.9]} 4... O-O {[%clk 0:03:02.2]} 5. e3 {[%clk 0:03:07]} 5...
c5 {[%clk 0:03:02.4]} 6. Be2 {[%clk 0:03:07.2]} 6... d5 {[%clk 0:02:59.6]} 7.
cxd5 {[%clk 0:03:07.8]} 7... Nxd5 {[%clk 0:03:00.4]} 8. Bxg7 {[%clk 0:03:08.7]}
8... Kxg7 {[%clk 0:03:01.9]} 9. Qc1 {[%clk 0:03:10.1]} 9... b6 {[%clk
0:02:59.9]} 10. Nc3 {[%clk 0:03:09.8]} 10... Bb7 {[%clk 0:02:53.1]} 11. d4
{[%clk 0:03:10.7]} 11... cxd4 {[%clk 0:02:50.9]} 12. Nxd4 {[%clk 0:03:10]} 12...
e5 {[%clk 0:02:46.8]} 13. Nf3 {[%clk 0:03:08.2]} 13... f6 {[%clk 0:02:24.5]} 14.
O-O {[%clk 0:03:08.7]} 14... Nxc3 {[%clk 0:02:20.5]} 15. Qxc3 {[%clk 0:03:09.2]}
15... Nc6 {[%clk 0:02:21.2]} 16. Rfd1 {[%clk 0:03:09.1]} 16... Qe7 {[%clk
0:02:22.2]} 17. Bb5 {[%clk 0:03:04]} 17... Rac8 {[%clk 0:02:17.5]} 18. Qd2
{[%clk 0:02:58.5]} 18... Rfd8 {[%clk 0:02:15.2]} 19. Qe2 {[%clk 0:02:59.6]}
19... Nb4 {[%clk 0:02:06.3]} 20. a3 {[%clk 0:02:56.3]} 20... Nd5 {[%clk
0:01:59.6]} 21. Qb2 {[%clk 0:02:39.3]} 21... Nc3 {[%clk 0:01:51.8]} 22. Rxd8
{[%clk 0:02:39.2]} 22... Qxd8 {[%clk 0:01:52.5]} 23. Bf1 {[%clk 0:02:36.7]}
23... Ne4 {[%clk 0:01:27.3]} 24. b4 {[%clk 0:02:13.5]} 24... Rc7 {[%clk
0:01:22.3]} 25. Rc1 {[%clk 0:02:12.6]} 25... Qc8 {[%clk 0:01:16.8]} 26. Rxc7+
{[%clk 0:02:10]} 26... Qxc7 {[%clk 0:01:18.1]} 27. a4 {[%clk 0:02:10.7]} 27...
g5 {[%clk 0:01:15.2]} 28. h3 {[%clk 0:02:10.2]} 28... h5 {[%clk 0:01:15.1]} 29.
Nd2 {[%clk 0:02:07.5]} 29... h4 {[%clk 0:01:11.1]} 30. Nxe4 {[%clk 0:02:00.5]}
30... Bxe4 {[%clk 0:01:12.3]} 31. Qd2 {[%clk 0:02:01.6]} 31... Qc6 {[%clk
0:01:06.6]} 32. a5 {[%clk 0:02:00.5]} 32... Qd5 {[%clk 0:01:03.6]} 33. Qc1
{[%clk 0:01:52.3]} 33... Qc6 {[%clk 0:01:01.3]} 34. Qa1 {[%clk 0:01:51.6]} 34...
bxa5 {[%clk 0:00:48]} 35. bxa5 {[%clk 0:01:49.5]} 35... Qc5 {[%clk 0:00:46]} 36.
Qa4 {[%clk 0:01:45.8]} 36... Bc6 {[%clk 0:00:45]} 37. Qa1 {[%clk 0:01:43.4]}
37... Qd5 {[%clk 0:00:43.1]} 38. Qc3 {[%clk 0:01:42.5]} 38... Kh6 {[%clk
0:00:40.8]} 39. Qb4 {[%clk 0:01:39.5]} 39... Kg7 {[%clk 0:00:36.1]} 40. Qe7+
{[%clk 0:01:39.3]} 40... Qf7 {[%clk 0:00:37]} 41. Qc5 {[%clk 0:01:39]} 41... Qb7
{[%clk 0:00:37.3]} 42. f4 {[%clk 0:01:21.7]} 42... exf4 {[%clk 0:00:35.8]} 43.
exf4 {[%clk 0:01:22.7]} 43... gxf4 {[%clk 0:00:34.5]} 44. Qf2 {[%clk 0:01:23.1]}
44... Qc7 {[%clk 0:00:27.4]} 45. Qxh4 {[%clk 0:01:20.3]} 45... Qxa5 {[%clk
0:00:27.8]} 46. Qxf4 {[%clk 0:01:18.9]} 46... Qc5+ {[%clk 0:00:24.1]} 47. Kh1
{[%clk 0:01:18.6]} 47... a5 {[%clk 0:00:21.9]} 48. Bd3 {[%clk 0:01:16.6]} 48...
Qe5 {[%clk 0:00:20.9]} 49. Qg4+ {[%clk 0:01:15.8]} 49... Qg5 {[%clk 0:00:21.9]}
50. Qe2 {[%clk 0:01:10.6]} 50... Qe5 {[%clk 0:00:18.6]} 51. Qf2 {[%clk
0:01:03.1]} 51... Qa1+ {[%clk 0:00:09.1]} 52. Kh2 {[%clk 0:01:03.3]} 52... Qe5+
{[%clk 0:00:10.4]} 53. Kg1 {[%clk 0:01:02.4]} 53... Qa1+ {[%clk 0:00:10.9]} 54.
Bf1 {[%clk 0:01:03.3]} 54... Qe5 {[%clk 0:00:10.9]} 55. h4 {[%clk 0:01:01.3]}
55... a4 {[%clk 0:00:09.9]} 56. Qa7+ {[%clk 0:01:01.9]} 56... Kh6 {[%clk
0:00:09.7]} 57. Qb6 {[%clk 0:00:54.3]} 57... Qd5 {[%clk 0:00:04.7]} 58. Qe3+
{[%clk 0:00:51.3]} 58... Kh5 {[%clk 0:00:04]} 59. Qf4 {[%clk 0:00:46.4]} 1-0